[Event "*** Titled Tuesday Blitz"]
[Site "Chess.com"]
[Date "2020.11.03"]
[Round "1"]
[White "Snegokhod"]
[Black "LiemLe"]
[Result "0-1"]
[WhiteElo "2468"]
[BlackElo "3007"]
[TimeControl "180+1"]
[EndTime "10:06:50 PST"]
[Termination "LiemLe won by resignation"]

1. e4 {[%clk 0:03:00.9]} 1... c5 {[%clk 0:02:58]} 2. Nf3 {[%clk 0:03:00.6]} 2...
Nc6 {[%clk 0:02:57.1]} 3. Bb5 {[%clk 0:02:59.4]} 3... g6 {[%clk 0:02:55.8]} 4.
O-O {[%clk 0:02:58.9]} 4... Bg7 {[%clk 0:02:55.1]} 5. Re1 {[%clk 0:02:58.8]}
5... e5 {[%clk 0:02:53.6]} 6. d3 {[%clk 0:02:55]} 6... Nge7 {[%clk 0:02:52.7]}
7. a3 {[%clk 0:02:53.1]} 7... O-O {[%clk 0:02:51.6]} 8. Bc4 {[%clk 0:02:50.4]}
8... h6 {[%clk 0:02:46.9]} 9. Nc3 {[%clk 0:02:50]} 9... d6 {[%clk 0:02:45.7]}
10. Nd5 {[%clk 0:02:49.9]} 10... Nxd5 {[%clk 0:02:44]} 11. Bxd5 {[%clk
0:02:49.4]} 11... Kh7 {[%clk 0:02:40.2]} 12. c3 {[%clk 0:02:42.7]} 12... Ne7
{[%clk 0:02:35.1]} 13. Ba2 {[%clk 0:02:38.4]} 13... f5 {[%clk 0:02:30.2]} 14. b4
{[%clk 0:02:34.7]} 14... b6 {[%clk 0:02:22.8]} 15. Nd2 {[%clk 0:02:29.5]} 15...
f4 {[%clk 0:02:12]} 16. Bb2 {[%clk 0:02:20.8]} 16... g5 {[%clk 0:02:05.5]} 17.
f3 {[%clk 0:02:18.8]} 17... Ng6 {[%clk 0:02:02.9]} 18. d4 {[%clk 0:02:05.8]}
18... Qe7 {[%clk 0:02:00.8]} 19. dxc5 {[%clk 0:02:01.3]} 19... dxc5 {[%clk
0:01:57.4]} 20. bxc5 {[%clk 0:01:55.1]} 20... Qxc5+ {[%clk 0:01:56.2]} 21. Kh1
{[%clk 0:01:54.3]} 21... Bb7 {[%clk 0:01:53]} 22. Qe2 {[%clk 0:01:48.2]} 22...
Rfd8 {[%clk 0:01:46.6]} 23. Nb3 {[%clk 0:01:40.1]} 23... Qc7 {[%clk 0:01:35.8]}
24. c4 {[%clk 0:01:32]} 24... Ba6 {[%clk 0:01:35]} 25. Rac1 {[%clk 0:01:31.3]}
25... Rac8 {[%clk 0:01:32.2]} 26. Nd2 {[%clk 0:01:26.5]} 26... Nf8 {[%clk
0:01:27.2]} 27. Nf1 {[%clk 0:01:18.2]} 27... Ne6 {[%clk 0:01:25]} 28. Qf2 {[%clk
0:01:14]} 28... Qc5 {[%clk 0:01:24.8]} 29. Qxc5 {[%clk 0:00:58.8]} 29... Nxc5
{[%clk 0:01:25.7]} 30. Bc3 {[%clk 0:00:55.1]} 30... Nd3 {[%clk 0:01:25.4]} 31.
Kg1 {[%clk 0:00:51.4]} 31... Bxc4 {[%clk 0:01:23.2]} 32. Bxc4 {[%clk 0:00:43.6]}
32... Rxc4 {[%clk 0:01:24.1]} 33. Bd2 {[%clk 0:00:34.4]} 33... Rxc1 {[%clk
0:01:20.9]} 34. Rxc1 {[%clk 0:00:32.3]} 34... Nxc1 {[%clk 0:01:21]} 35. Bxc1
{[%clk 0:00:32.8]} 35... Rd1 {[%clk 0:01:20]} 36. Bb2 {[%clk 0:00:32.8]} 36...
Rb1 {[%clk 0:01:17.5]} 37. Bc3 {[%clk 0:00:32.9]} 37... a5 {[%clk 0:01:11.4]}
38. Kf2 {[%clk 0:00:27.7]} 38... Rb3 {[%clk 0:01:11.2]} 39. Bd2 {[%clk
0:00:26.5]} 39... Bf8 {[%clk 0:01:10.5]} 40. Ke2 {[%clk 0:00:27.3]} 40... Bxa3
{[%clk 0:01:08.9]} 41. Kd1 {[%clk 0:00:23.2]} 41... Rb1+ {[%clk 0:01:08.3]} 42.
Ke2 {[%clk 0:00:23.5]} 42... Bb2 {[%clk 0:01:06.2]} 43. Be1 {[%clk 0:00:23.5]}
43... a4 {[%clk 0:01:05]} 44. Nd2 {[%clk 0:00:23.6]} 44... Rxe1+ {[%clk
0:01:05.5]} 45. Kxe1 {[%clk 0:00:23.5]} 45... Bc3 {[%clk 0:01:06.4]} 46. Ke2
{[%clk 0:00:23.9]} 46... Bxd2 {[%clk 0:01:06.6]} 47. Kxd2 {[%clk 0:00:24.4]}
47... b5 {[%clk 0:01:06.3]} 48. Kc3 {[%clk 0:00:24.9]} 48... h5 {[%clk
0:01:06.4]} 49. Kb4 {[%clk 0:00:25.3]} 49... g4 {[%clk 0:01:05.6]} 50. h4 {[%clk
0:00:24.8]} 50... Kg6 {[%clk 0:00:58.1]} 51. Kxb5 {[%clk 0:00:24.9]} 51... a3
{[%clk 0:00:57.9]} 52. Kb4 {[%clk 0:00:24.8]} 52... a2 {[%clk 0:00:57.9]} 53.
Kb3 {[%clk 0:00:25.2]} 53... a1=Q {[%clk 0:00:58.8]} 0-1

[Event "*** Titled Tuesday Blitz"]
[Site "Chess.com"]
[Date "2020.11.03"]
[Round "1"]
[White "Mikhail_Golubev"]
[Black "HouseOfDurin"]
[Result "1-0"]
[WhiteElo "2543"]
[BlackElo "2183"]
[TimeControl "180+1"]
[EndTime "10:06:50 PST"]
[Termination "Mikhail_Golubev won by checkmate"]

1. e4 {[%clk 0:03:00.9]} 1... c5 {[%clk 0:03:00]} 2. Nf3 {[%clk 0:03:00.1]} 2...
Nc6 {[%clk 0:02:57.7]} 3. Nc3 {[%clk 0:02:59.5]} 3... e5 {[%clk 0:02:56.9]} 4.
Bc4 {[%clk 0:02:59.4]} 4... g6 {[%clk 0:02:56.3]} 5. h4 {[%clk 0:02:56.3]} 5...
h6 {[%clk 0:02:55.8]} 6. h5 {[%clk 0:02:51]} 6... g5 {[%clk 0:02:55]} 7. Nh2
{[%clk 0:02:47.3]} 7... d6 {[%clk 0:02:50.3]} 8. Ng4 {[%clk 0:02:40.8]} 8... Bg7
{[%clk 0:02:47.1]} 9. Ne3 {[%clk 0:02:34.4]} 9... Nge7 {[%clk 0:02:38]} 10. Ncd5
{[%clk 0:02:29.8]} 10... Nxd5 {[%clk 0:02:34]} 11. Bxd5 {[%clk 0:02:29.2]} 11...
Be6 {[%clk 0:02:24.9]} 12. g4 {[%clk 0:02:21.9]} 12... Qd7 {[%clk 0:02:02.8]}
13. c3 {[%clk 0:02:19.6]} 13... Ne7 {[%clk 0:01:58.8]} 14. c4 {[%clk 0:02:15.5]}
14... O-O-O {[%clk 0:01:42.6]} 15. d3 {[%clk 0:02:13.2]} 15... Kb8 {[%clk
0:01:01.6]} 16. Bd2 {[%clk 0:02:11.1]} 16... Nc6 {[%clk 0:00:56.9]} 17. Kf1
{[%clk 0:02:08.9]} 17... Nd4 {[%clk 0:00:56.6]} 18. Kg2 {[%clk 0:02:08.6]} 18...
Bxd5 {[%clk 0:00:20.5]} 19. cxd5 {[%clk 0:02:04.6]} 19... f6 {[%clk 0:00:19.6]}
20. b4 {[%clk 0:01:55.5]} 20... b6 {[%clk 0:00:17.9]} 21. a4 {[%clk 0:01:50.5]}
21... Bf8 {[%clk 0:00:11.3]} 22. a5 {[%clk 0:01:48.3]} 22... Rc8 {[%clk
0:00:09.7]} 23. axb6 {[%clk 0:01:45.4]} 23... axb6 {[%clk 0:00:10.6]} 24. Ra2
{[%clk 0:01:38.7]} 24... Rc7 {[%clk 0:00:10.2]} 25. Nc4 {[%clk 0:01:29.8]} 25...
Ra7 {[%clk 0:00:07.8]} 26. Nxb6 {[%clk 0:01:19.6]} 26... Qb7 {[%clk 0:00:07.1]}
27. Rxa7 {[%clk 0:01:18.8]} 27... Qxa7 {[%clk 0:00:04.1]} 28. Nc4 {[%clk
0:01:11.3]} 28... Rh7 {[%clk 0:00:03.9]} 29. bxc5 {[%clk 0:01:04]} 29... Qxc5
{[%clk 0:00:04.8]} 30. Be3 {[%clk 0:01:00.8]} 30... Rb7 {[%clk 0:00:04.8]} 31.
Bxd4 {[%clk 0:00:52.5]} 31... Qxd4 {[%clk 0:00:04.5]} 32. Qf3 {[%clk 0:00:52.5]}
32... Be7 {[%clk 0:00:03.6]} 33. Na5 {[%clk 0:00:49.8]} 33... Qc5 {[%clk
0:00:01.5]} 34. Nxb7 {[%clk 0:00:47.9]} 34... Kxb7 {[%clk 0:00:01.3]} 35. Rb1+
{[%clk 0:00:48.4]} 35... Kc7 {[%clk 0:00:01.1]} 36. Qf5 {[%clk 0:00:47.4]} 36...
Kd8 {[%clk 0:00:01.1]} 37. Rb8+ {[%clk 0:00:45.9]} 37... Kc7 {[%clk 0:00:01.1]}
38. Qc8# {[%clk 0:00:45.8]} 1-0

[Event "*** Titled Tuesday Blitz"]
[Site "Chess.com"]
[Date "2020.11.03"]
[Round "1"]
[White "Mikasinski"]
[Black "hansen"]
[Result "0-1"]
[WhiteElo "2457"]
[BlackElo "2940"]
[TimeControl "180+1"]
[EndTime "10:06:51 PST"]
[Termination "hansen won by resignation"]

1. e4 {[%clk 0:03:00.9]} 1... c5 {[%clk 0:02:59.1]} 2. Nf3 {[%clk 0:02:59.7]}
2... e6 {[%clk 0:02:59.6]} 3. d4 {[%clk 0:02:59.8]} 3... cxd4 {[%clk 0:03:00.5]}
4. Nxd4 {[%clk 0:03:00.6]} 4... a6 {[%clk 0:03:00.7]} 5. Be2 {[%clk 0:03:00.6]}
5... Qc7 {[%clk 0:03:00.8]} 6. O-O {[%clk 0:03:00.2]} 6... Nf6 {[%clk
0:03:01.3]} 7. Nc3 {[%clk 0:02:43.6]} 7... Bb4 {[%clk 0:03:00.4]} 8. Bg5 {[%clk
0:02:39.2]} 8... Nc6 {[%clk 0:03:00.3]} 9. Rb1 {[%clk 0:01:57.9]} 9... h6 {[%clk
0:02:25.8]} 10. Bh4 {[%clk 0:01:50.2]} 10... Be7 {[%clk 0:02:22.3]} 11. Bg3
{[%clk 0:01:48.4]} 11... d6 {[%clk 0:02:22.7]} 12. Kh1 {[%clk 0:01:38.7]} 12...
Bd7 {[%clk 0:02:18.1]} 13. f4 {[%clk 0:01:38.7]} 13... Rc8 {[%clk 0:02:18.1]}
14. f5 {[%clk 0:01:25.5]} 14... Nxd4 {[%clk 0:02:15]} 15. Qxd4 {[%clk
0:01:25.4]} 15... e5 {[%clk 0:02:15.6]} 16. Qd3 {[%clk 0:01:23.6]} 16... b5
{[%clk 0:02:14]} 17. a3 {[%clk 0:01:23.4]} 17... Bc6 {[%clk 0:02:10.6]} 18. Rbd1
{[%clk 0:01:22.4]} 18... Qb7 {[%clk 0:02:10.5]} 19. Bf3 {[%clk 0:01:22.3]} 19...
a5 {[%clk 0:02:10.8]} 20. b4 {[%clk 0:01:17.2]} 20... axb4 {[%clk 0:02:10.9]}
21. axb4 {[%clk 0:01:17.4]} 21... O-O {[%clk 0:02:09.3]} 22. Ra1 {[%clk
0:01:06]} 22... Ra8 {[%clk 0:02:06.1]} 23. Bf2 {[%clk 0:00:59.4]} 23... Rfc8
{[%clk 0:02:03.6]} 24. Rfe1 {[%clk 0:00:41.6]} 24... Nh7 {[%clk 0:01:54.6]} 25.
g3 {[%clk 0:00:39.7]} 25... Nf6 {[%clk 0:01:43.8]} 26. h3 {[%clk 0:00:38.9]}
26... Bd7 {[%clk 0:01:37.9]} 27. Be2 {[%clk 0:00:20.5]} 27... Rc4 {[%clk
0:01:36.6]} 28. Bf3 {[%clk 0:00:18.5]} 28... Rac8 {[%clk 0:01:28.6]} 29. Ra3
{[%clk 0:00:17.1]} 29... Rxb4 {[%clk 0:01:22.3]} 30. Ra7 {[%clk 0:00:16.6]}
30... Qb8 {[%clk 0:01:16.5]} 31. Rxd7 {[%clk 0:00:10.2]} 31... Rxc3 {[%clk
0:01:06.9]} 32. Qxc3 {[%clk 0:00:08.5]} 32... Rc4 {[%clk 0:01:07.1]} 33. Qxc4
{[%clk 0:00:04.1]} 33... bxc4 {[%clk 0:01:07.4]} 34. Rxe7 {[%clk 0:00:04.6]}
34... Qb2 {[%clk 0:00:59.6]} 35. Ra7 {[%clk 0:00:03.9]} 35... Qxc2 {[%clk
0:00:58.2]} 36. Re2 {[%clk 0:00:04.1]} 36... Qd3 {[%clk 0:00:48.6]} 37. Kg2
{[%clk 0:00:03.7]} 37... d5 {[%clk 0:00:47.2]} 38. exd5 {[%clk 0:00:03.2]} 38...
e4 {[%clk 0:00:47.7]} 39. Ra8+ {[%clk 0:00:02.4]} 39... Kh7 {[%clk 0:00:47.7]}
40. Bxe4 {[%clk 0:00:02.2]} 40... Nxe4 {[%clk 0:00:47.5]} 41. Re8 {[%clk
0:00:01.7]} 41... Qxe2 {[%clk 0:00:47.4]} 0-1

[Event "*** Titled Tuesday Blitz"]
[Site "Chess.com"]
[Date "2020.11.03"]
[Round "1"]
[White "lider34"]
[Black "Semen_Khanin"]
[Result "0-1"]
[WhiteElo "2392"]
[BlackElo "2779"]
[TimeControl "180+1"]
[EndTime "10:06:51 PST"]
[Termination "Semen_Khanin won by resignation"]

1. e4 {[%clk 0:03:00.9]} 1... c5 {[%clk 0:02:59.5]} 2. c3 {[%clk 0:03:00.1]}
2... Nf6 {[%clk 0:02:58.2]} 3. e5 {[%clk 0:02:59.5]} 3... Nd5 {[%clk 0:02:56.8]}
4. d4 {[%clk 0:02:59.8]} 4... cxd4 {[%clk 0:02:54.7]} 5. Nf3 {[%clk 0:02:59.6]}
5... Nc6 {[%clk 0:02:51.9]} 6. Bc4 {[%clk 0:02:58.3]} 6... Nb6 {[%clk
0:02:41.8]} 7. Bb3 {[%clk 0:02:57.9]} 7... d6 {[%clk 0:02:38.3]} 8. exd6 {[%clk
0:02:57]} 8... Qxd6 {[%clk 0:02:37.8]} 9. O-O {[%clk 0:02:56.6]} 9... Be6 {[%clk
0:02:32.6]} 10. Na3 {[%clk 0:02:56.2]} 10... Bxb3 {[%clk 0:02:29.3]} 11. Qxb3
{[%clk 0:02:55.9]} 11... e6 {[%clk 0:02:25.3]} 12. Nb5 {[%clk 0:02:55.3]} 12...
Qd8 {[%clk 0:02:23.9]} 13. Nbxd4 {[%clk 0:02:52.1]} 13... Nxd4 {[%clk
0:02:23.2]} 14. Nxd4 {[%clk 0:02:52]} 14... Be7 {[%clk 0:02:22.2]} 15. Rd1
{[%clk 0:02:48.3]} 15... Qd5 {[%clk 0:02:16.1]} 16. Be3 {[%clk 0:02:41.1]} 16...
O-O {[%clk 0:02:13.4]} 17. Nb5 {[%clk 0:02:35.4]} 17... Qf5 {[%clk 0:01:31.3]}
18. Nxa7 {[%clk 0:02:23.3]} 18... Nd5 {[%clk 0:01:31.1]} 19. Nb5 {[%clk
0:02:05.1]} 19... Nxe3 {[%clk 0:01:28.8]} 20. fxe3 {[%clk 0:02:05.5]} 20... Qe4
{[%clk 0:01:25.4]} 21. c4 {[%clk 0:01:56.8]} 21... Bc5 {[%clk 0:01:24.3]} 22.
Nd4 {[%clk 0:01:35.5]} 22... e5 {[%clk 0:01:22]} 23. Nc2 {[%clk 0:01:32.7]}
23... Rad8 {[%clk 0:01:20.3]} 24. Qc3 {[%clk 0:01:18.5]} 24... h5 {[%clk
0:01:01.7]} 25. b4 {[%clk 0:01:17.6]} 25... Be7 {[%clk 0:01:02]} 26. c5 {[%clk
0:01:12.2]} 26... h4 {[%clk 0:01:01.5]} 27. h3 {[%clk 0:01:11.4]} 27... Bg5
{[%clk 0:00:58]} 28. Qb3 {[%clk 0:00:58.4]} 28... Kh7 {[%clk 0:00:53.4]} 29. a4
{[%clk 0:00:39.1]} 29... f5 {[%clk 0:00:52.8]} 30. b5 {[%clk 0:00:35.3]} 30...
f4 {[%clk 0:00:47.3]} 31. exf4 {[%clk 0:00:35.2]} 31... Bxf4 {[%clk 0:00:47.6]}
32. Rxd8 {[%clk 0:00:22.8]} 32... Rxd8 {[%clk 0:00:47.2]} 33. Ne1 {[%clk
0:00:22.1]} 33... Be3+ {[%clk 0:00:44.4]} 34. Kh1 {[%clk 0:00:20.6]} 34... Rd2
{[%clk 0:00:44.1]} 35. Nf3 {[%clk 0:00:19.9]} 35... Rf2 {[%clk 0:00:43.6]} 36.
Re1 {[%clk 0:00:17.8]} 36... Rxf3 {[%clk 0:00:42.3]} 37. gxf3 {[%clk 0:00:16]}
37... Qxf3+ {[%clk 0:00:42.6]} 38. Kh2 {[%clk 0:00:16]} 38... Bf4+ {[%clk
0:00:42.7]} 39. Kg1 {[%clk 0:00:16]} 39... Qxb3 {[%clk 0:00:43.4]} 0-1

[Event "*** Titled Tuesday Blitz"]
[Site "Chess.com"]
[Date "2020.11.03"]
[Round "1"]
[White "eCztery"]
[Black "doons21"]
[Result "0-1"]
[WhiteElo "2258"]
[BlackElo "2576"]
[TimeControl "180+1"]
[EndTime "10:06:51 PST"]
[Termination "doons21 won on time"]

1. e4 {[%clk 0:02:27.3]} 1... c5 {[%clk 0:02:56.5]} 2. Nf3 {[%clk 0:02:26.7]}
2... d6 {[%clk 0:02:57]} 3. d4 {[%clk 0:02:26.4]} 3... cxd4 {[%clk 0:02:57.9]}
4. Qxd4 {[%clk 0:02:27.1]} 4... a6 {[%clk 0:02:57.2]} 5. c4 {[%clk 0:02:26.5]}
5... Nc6 {[%clk 0:02:57.6]} 6. Qe3 {[%clk 0:02:16]} 6... Nf6 {[%clk 0:02:56.7]}
7. Nc3 {[%clk 0:02:15.5]} 7... e6 {[%clk 0:02:54.5]} 8. h3 {[%clk 0:02:15]} 8...
Be7 {[%clk 0:02:54.1]} 9. Be2 {[%clk 0:02:15.4]} 9... O-O {[%clk 0:02:54.7]} 10.
O-O {[%clk 0:02:13.8]} 10... Qc7 {[%clk 0:02:54.8]} 11. b3 {[%clk 0:02:12.5]}
11... b6 {[%clk 0:02:53.7]} 12. Bb2 {[%clk 0:02:12.3]} 12... Bb7 {[%clk
0:02:52.6]} 13. Rac1 {[%clk 0:02:12.8]} 13... Qd8 {[%clk 0:02:32.8]} 14. Rfd1
{[%clk 0:02:10.2]} 14... Nd7 {[%clk 0:02:32.8]} 15. Nd4 {[%clk 0:01:46.3]} 15...
Rc8 {[%clk 0:02:25.6]} 16. Nxc6 {[%clk 0:01:41.8]} 16... Rxc6 {[%clk 0:02:26.5]}
17. Kh1 {[%clk 0:01:40.5]} 17... Qa8 {[%clk 0:02:24.3]} 18. f4 {[%clk
0:01:31.1]} 18... h6 {[%clk 0:02:22.4]} 19. Bf3 {[%clk 0:01:31.4]} 19... Rc7
{[%clk 0:02:20.5]} 20. Na4 {[%clk 0:01:25.1]} 20... Qa7 {[%clk 0:02:11.5]} 21.
e5 {[%clk 0:01:16.2]} 21... dxe5 {[%clk 0:02:10.3]} 22. fxe5 {[%clk 0:00:58.7]}
22... Bg5 {[%clk 0:02:09.3]} 23. Qe2 {[%clk 0:00:51.5]} 23... Bxc1 {[%clk
0:02:08.2]} 24. Bxc1 {[%clk 0:00:52.4]} 24... Bxf3 {[%clk 0:02:06.5]} 25. gxf3
{[%clk 0:00:53.3]} 25... b5 {[%clk 0:02:05.7]} 26. Nb2 {[%clk 0:00:46.6]} 26...
Qb7 {[%clk 0:01:59.3]} 27. Rg1 {[%clk 0:00:45.5]} 27... Kh8 {[%clk 0:01:40.3]}
28. Bxh6 {[%clk 0:00:34.9]} 28... g6 {[%clk 0:01:15.2]} 29. Bxf8 {[%clk
0:00:35.8]} 29... Nxf8 {[%clk 0:01:15.8]} 30. cxb5 {[%clk 0:00:28.5]} 30... axb5
{[%clk 0:01:16.7]} 31. Nd3 {[%clk 0:00:27.7]} 31... Nd7 {[%clk 0:01:13.8]} 32.
Nf2 {[%clk 0:00:27.2]} 32... Qd5 {[%clk 0:01:12.4]} 33. Ng4 {[%clk 0:00:25.9]}
33... Rc3 {[%clk 0:01:12.7]} 34. Rd1 {[%clk 0:00:23.2]} 34... Qc6 {[%clk
0:01:10.4]} 35. Kg2 {[%clk 0:00:19.3]} 35... Kg7 {[%clk 0:01:05]} 36. Kg3 {[%clk
0:00:18.3]} 36... Nc5 {[%clk 0:00:59.2]} 37. Rd6 {[%clk 0:00:07.6]} 37... Ne4+
{[%clk 0:00:55]} 38. Kg2 {[%clk 0:00:01]} 38... Nxd6 {[%clk 0:00:55.3]} 0-1

[Event "*** Titled Tuesday Blitz"]
[Site "Chess.com"]
[Date "2020.11.03"]
[Round "1"]
[White "Tactictic"]
[Black "tigra"]
[Result "0-1"]
[WhiteElo "2414"]
[BlackElo "2832"]
[TimeControl "180+1"]
[EndTime "10:06:52 PST"]
[Termination "tigra won by resignation"]

1. e4 {[%clk 0:01:51.2]} 1... c5 {[%clk 0:02:58.4]} 2. Nf3 {[%clk 0:01:51.1]}
2... g6 {[%clk 0:02:58.1]} 3. d4 {[%clk 0:01:52]} 3... cxd4 {[%clk 0:02:58.6]}
4. Qxd4 {[%clk 0:01:50.7]} 4... Nf6 {[%clk 0:02:57.9]} 5. e5 {[%clk 0:01:42.8]}
5... Nc6 {[%clk 0:01:44.1]} 6. Qa4 {[%clk 0:01:34.7]} 6... Nd5 {[%clk
0:01:43.9]} 7. c4 {[%clk 0:01:33.1]} 7... Nb6 {[%clk 0:01:43.5]} 8. Qc2 {[%clk
0:01:32.2]} 8... Bg7 {[%clk 0:01:43.8]} 9. Qe4 {[%clk 0:01:29.5]} 9... d6 {[%clk
0:01:41.2]} 10. Bf4 {[%clk 0:01:19.3]} 10... Bf5 {[%clk 0:01:40.6]} 11. Qe3
{[%clk 0:01:09.2]} 11... O-O {[%clk 0:01:34.7]} 12. Be2 {[%clk 0:00:48.3]} 12...
dxe5 {[%clk 0:01:32.1]} 13. Nxe5 {[%clk 0:00:43.2]} 13... Nd4 {[%clk 0:01:32.3]}
14. Na3 {[%clk 0:00:35.3]} 14... Nxe2 {[%clk 0:01:30.5]} 15. Qxe2 {[%clk
0:00:32.5]} 15... Qd4 {[%clk 0:01:29.8]} 16. Bg3 {[%clk 0:00:20.2]} 16... h5
{[%clk 0:01:24.2]} 17. O-O {[%clk 0:00:16.5]} 17... h4 {[%clk 0:01:18.5]} 18.
Rad1 {[%clk 0:00:14.9]} 18... Qc5 {[%clk 0:01:18.8]} 19. Bf4 {[%clk 0:00:12.9]}
19... g5 {[%clk 0:01:14.2]} 20. Bxg5 {[%clk 0:00:05.2]} 20... Qxe5 {[%clk
0:01:14]} 21. Qd2 {[%clk 0:00:03]} 21... Qxb2 {[%clk 0:01:08.7]} 22. Qf4 {[%clk
0:00:03.1]} 22... Bg6 {[%clk 0:00:44.1]} 23. Nb5 {[%clk 0:00:03.5]} 23... Qe5
{[%clk 0:00:36.9]} 24. Qxh4 {[%clk 0:00:03.6]} 24... f6 {[%clk 0:00:34.8]} 25.
Bf4 {[%clk 0:00:03.9]} 25... Qh5 {[%clk 0:00:33.6]} 26. Qg3 {[%clk 0:00:04.8]}
26... e5 {[%clk 0:00:27.7]} 27. Nc7 {[%clk 0:00:05.3]} 27... exf4 {[%clk
0:00:27.1]} 28. Qxf4 {[%clk 0:00:02.7]} 28... Rad8 {[%clk 0:00:26.6]} 29. Ne6
{[%clk 0:00:01.8]} 29... Rxd1 {[%clk 0:00:25.8]} 30. Nxf8 {[%clk 0:00:01.9]}
30... Rxf1+ {[%clk 0:00:26]} 0-1

[Event "*** Titled Tuesday Blitz"]
[Site "Chess.com"]
[Date "2020.11.03"]
[Round "1"]
[White "kirillshevchenko"]
[Black "ZEN-22"]
[Result "1-0"]
[WhiteElo "2869"]
[BlackElo "2440"]
[TimeControl "180+1"]
[EndTime "10:06:56 PST"]
[Termination "kirillshevchenko won by resignation"]

1. e4 {[%clk 0:03:00.6]} 1... d5 {[%clk 0:02:53.6]} 2. exd5 {[%clk 0:03:00.1]}
2... c6 {[%clk 0:02:54.1]} 3. d4 {[%clk 0:02:57.3]} 3... cxd5 {[%clk 0:02:53.6]}
4. Bd3 {[%clk 0:02:56.7]} 4... Nc6 {[%clk 0:02:53.8]} 5. c3 {[%clk 0:02:53.3]}
5... e5 {[%clk 0:02:53.4]} 6. dxe5 {[%clk 0:02:50.6]} 6... Nxe5 {[%clk 0:02:53]}
7. Bb5+ {[%clk 0:02:49.6]} 7... Nc6 {[%clk 0:02:52.7]} 8. Nf3 {[%clk 0:02:47.1]}
8... Bc5 {[%clk 0:02:52.2]} 9. O-O {[%clk 0:02:42.3]} 9... Nf6 {[%clk 0:02:52]}
10. Re1+ {[%clk 0:02:41.9]} 10... Be6 {[%clk 0:02:50.9]} 11. Be3 {[%clk
0:02:14.3]} 11... Bxe3 {[%clk 0:02:42.2]} 12. Rxe3 {[%clk 0:02:14.1]} 12... O-O
{[%clk 0:02:42.7]} 13. Nd4 {[%clk 0:02:00.2]} 13... Ng4 {[%clk 0:02:34.3]} 14.
Rg3 {[%clk 0:01:28.3]} 14... Qh4 {[%clk 0:02:21.3]} 15. Nf3 {[%clk 0:01:25.7]}
15... Qf6 {[%clk 0:02:17.2]} 16. Bxc6 {[%clk 0:01:06.4]} 16... bxc6 {[%clk
0:02:16.3]} 17. Qd4 {[%clk 0:01:06.9]} 17... Qh6 {[%clk 0:02:02.5]} 18. Nbd2
{[%clk 0:01:03.2]} 18... f5 {[%clk 0:01:56.7]} 19. Re1 {[%clk 0:00:52.3]} 19...
Rae8 {[%clk 0:01:55]} 20. Ne5 {[%clk 0:00:40.9]} 20... Nxe5 {[%clk 0:01:50.9]}
21. Rxe5 {[%clk 0:00:40]} 21... f4 {[%clk 0:01:50.5]} 22. Rgg5 {[%clk
0:00:23.9]} 22... Qf6 {[%clk 0:01:39.3]} 23. Nf3 {[%clk 0:00:14.4]} 23... h6
{[%clk 0:01:38.7]} 24. Rh5 {[%clk 0:00:14.3]} 24... Bf7 {[%clk 0:01:38.4]} 25.
Rxe8 {[%clk 0:00:13.3]} 25... Bxe8 {[%clk 0:01:34.4]} 26. Qxf6 {[%clk
0:00:10.9]} 26... Rxf6 {[%clk 0:01:33.7]} 27. Re5 {[%clk 0:00:11.4]} 27... Kf7
{[%clk 0:01:32.5]} 28. b4 {[%clk 0:00:04]} 28... g5 {[%clk 0:01:31.7]} 29. Nd4
{[%clk 0:00:03.5]} 29... a5 {[%clk 0:01:29.5]} 30. a3 {[%clk 0:00:03.2]} 30...
axb4 {[%clk 0:01:30.4]} 31. axb4 {[%clk 0:00:04]} 31... c5 {[%clk 0:01:30.9]}
32. bxc5 {[%clk 0:00:03.8]} 32... Ra6 {[%clk 0:01:31.8]} 33. h4 {[%clk 0:00:04]}
33... Ra1+ {[%clk 0:01:32.7]} 34. Kh2 {[%clk 0:00:04]} 34... g4 {[%clk
0:01:33.1]} 35. Rf5+ {[%clk 0:00:04.1]} 35... Kg6 {[%clk 0:01:32.7]} 36. Rxf4
{[%clk 0:00:05]} 36... h5 {[%clk 0:01:33.2]} 37. Rf5 {[%clk 0:00:04.2]} 37...
Ra2 {[%clk 0:01:33.7]} 38. Rg5+ {[%clk 0:00:04.5]} 38... Kf6 {[%clk 0:01:32.3]}
39. Rf5+ {[%clk 0:00:03.7]} 39... Kg6 {[%clk 0:01:31.3]} 40. c6 {[%clk
0:00:04.2]} 40... Bxc6 {[%clk 0:01:29.7]} 41. Rg5+ {[%clk 0:00:04.6]} 41... Kf6
{[%clk 0:01:30.3]} 42. Nxc6 {[%clk 0:00:05.5]} 42... Rxf2 {[%clk 0:01:29.5]} 43.
Rxh5 {[%clk 0:00:06]} 43... Rc2 {[%clk 0:01:28.6]} 44. Rxd5 {[%clk 0:00:05.8]}
44... Rxc3 {[%clk 0:01:27.4]} 45. Rd6+ {[%clk 0:00:05.2]} 45... Kf5 {[%clk
0:01:26.8]} 46. Nd4+ {[%clk 0:00:05.4]} 46... Ke5 {[%clk 0:01:27]} 47. Rd8
{[%clk 0:00:04.7]} 47... g3+ {[%clk 0:01:27.4]} 48. Kh3 {[%clk 0:00:04.8]} 48...
Rc1 {[%clk 0:01:28.1]} 49. Kxg3 {[%clk 0:00:04.9]} 49... Rc3+ {[%clk 0:01:26.9]}
50. Nf3+ {[%clk 0:00:04.8]} 50... Kf6 {[%clk 0:01:25.6]} 51. Rd4 {[%clk
0:00:05.3]} 51... Ke7 {[%clk 0:01:26.5]} 52. Rf4 {[%clk 0:00:05.6]} 52... Rc5
{[%clk 0:01:27.1]} 53. Kg4 {[%clk 0:00:05.6]} 53... Ke6 {[%clk 0:01:28]} 54. h5
{[%clk 0:00:05.2]} 54... Rc2 {[%clk 0:01:28.9]} 55. g3 {[%clk 0:00:05]} 55...
Rh2 {[%clk 0:01:28.9]} 56. Ng5+ {[%clk 0:00:05.8]} 56... Ke5 {[%clk 0:01:28.3]}
57. Rf5+ {[%clk 0:00:06.2]} 57... Kd6 {[%clk 0:01:28.2]} 58. Nf3 {[%clk
0:00:06.2]} 58... Ke7 {[%clk 0:01:29.1]} 59. Nxh2 {[%clk 0:00:06]} 59... Ke6
{[%clk 0:01:29.1]} 60. h6 {[%clk 0:00:06.9]} 60... Kd6 {[%clk 0:01:30]} 61. h7
{[%clk 0:00:07.5]} 61... Ke6 {[%clk 0:01:30.5]} 62. h8=Q {[%clk 0:00:08.1]}
62... Ke7 {[%clk 0:01:31.4]} 63. Qf6+ {[%clk 0:00:08.2]} 1-0